[Event "Early-Titled-Tuesday-Blitz-February-20-2024"]
[Site "Chess.com"]
[Date "2024.02.20"]
[Round "8"]
[White "PavelChernomordik"]
[Black "MaxLeto"]
[Result "1-0"]
[WhiteElo "2454"]
[BlackElo "2538"]
[TimeControl "180+1"]
[EndTime "9:29:22 PST"]
[Termination "PavelChernomordik won by checkmate"]

1. e4 {[%clk 0:03:00.9]} 1... c5 {[%clk 0:02:59.8]} 2. Nc3 {[%clk 0:02:58.8]}
2... Nc6 {[%clk 0:02:59.6]} 3. Bb5 {[%clk 0:02:58]} 3... e5 {[%clk 0:02:57.9]}
4. d3 {[%clk 0:02:51.9]} 4... Nge7 {[%clk 0:02:52.1]} 5. a3 {[%clk 0:02:49.9]}
5... a6 {[%clk 0:02:47.3]} 6. Bc4 {[%clk 0:02:49.4]} 6... b5 {[%clk 0:02:47.7]}
7. Ba2 {[%clk 0:02:48.7]} 7... d6 {[%clk 0:02:40.1]} 8. f4 {[%clk 0:02:46.4]}
8... exf4 {[%clk 0:02:00.8]} 9. Bxf4 {[%clk 0:02:44.2]} 9... Ng6 {[%clk
0:02:01.3]} 10. Be3 {[%clk 0:02:38.2]} 10... Be7 {[%clk 0:01:47.8]} 11. Nf3
{[%clk 0:02:37.2]} 11... Bg4 {[%clk 0:01:23.6]} 12. h3 {[%clk 0:02:33.4]} 12...
Bh4+ {[%clk 0:01:18.8]} 13. Bf2 {[%clk 0:02:23.2]} 13... Bxf2+ {[%clk
0:01:17.6]} 14. Kxf2 {[%clk 0:02:22.9]} 14... Bxf3 {[%clk 0:00:54]} 15. Qxf3
{[%clk 0:02:22.3]} 15... Nge5 {[%clk 0:00:47.9]} 16. Qg3 {[%clk 0:02:17.5]}
16... Qf6+ {[%clk 0:00:44.3]} 17. Kg1 {[%clk 0:02:14.8]} 17... O-O {[%clk
0:00:39.4]} 18. Rf1 {[%clk 0:02:12.5]} 18... Qh6 {[%clk 0:00:37.8]} 19. Kh2
{[%clk 0:02:10.1]} 19... Nd4 {[%clk 0:00:37.7]} 20. Rf2 {[%clk 0:02:08.8]} 20...
Kh8 {[%clk 0:00:26.7]} 21. Rhf1 {[%clk 0:02:08]} 21... a5 {[%clk 0:00:24.8]} 22.
Nd5 {[%clk 0:01:58.4]} 22... b4 {[%clk 0:00:21.9]} 23. c3 {[%clk 0:01:55.4]}
23... Ne6 {[%clk 0:00:17.9]} 24. Ne3 {[%clk 0:01:46.7]} 24... Nxd3 {[%clk
0:00:15]} 25. Nf5 {[%clk 0:01:45.9]} 25... Nxf2 {[%clk 0:00:02.5]} 26. Nxh6
{[%clk 0:01:44.3]} 26... Nxe4 {[%clk 0:00:03]} 27. Qe3 {[%clk 0:01:39.1]} 27...
N4g5 {[%clk 0:00:02]} 28. Nxf7+ {[%clk 0:01:35.2]} 28... Rxf7 {[%clk 0:00:01.2]}
29. Rxf7 {[%clk 0:01:34.2]} 29... Nxf7 {[%clk 0:00:02.1]} 30. Qxe6 {[%clk
0:01:33.3]} 30... Nh6 {[%clk 0:00:01.5]} 31. Qxd6 {[%clk 0:01:32.3]} 31... bxa3
{[%clk 0:00:02]} 32. bxa3 {[%clk 0:01:31.7]} 32... Nf5 {[%clk 0:00:02.9]} 33.
Qxc5 {[%clk 0:01:29.3]} 33... Rf8 {[%clk 0:00:03.5]} 34. Qxf8# {[%clk
0:01:28.2]} 1-0

[Event "Early-Titled-Tuesday-Blitz-February-20-2024"]
[Site "Chess.com"]
[Date "2024.02.20"]
[Round "8"]
[White "Kostukov_Alex"]
[Black "zurzan"]
[Result "1-0"]
[WhiteElo "2351"]
[BlackElo "2081"]
[TimeControl "180+1"]
[EndTime "9:29:26 PST"]
[Termination "Kostukov_Alex won by resignation"]

1. g3 {[%clk 0:02:59.8]} 1... g6 {[%clk 0:02:55.7]} 2. Bg2 {[%clk 0:02:58.7]}
2... Bg7 {[%clk 0:02:56.6]} 3. c4 {[%clk 0:02:59.1]} 3... Nf6 {[%clk 0:02:55.8]}
4. Nf3 {[%clk 0:02:59.6]} 4... d6 {[%clk 0:02:53.5]} 5. O-O {[%clk 0:03:00.5]}
5... O-O {[%clk 0:02:53]} 6. d4 {[%clk 0:03:01.1]} 6... c5 {[%clk 0:02:52]} 7.
Nc3 {[%clk 0:03:01.7]} 7... a6 {[%clk 0:02:47.3]} 8. dxc5 {[%clk 0:03:00.7]}
8... dxc5 {[%clk 0:02:47]} 9. Be3 {[%clk 0:02:58.5]} 9... Qc7 {[%clk 0:02:28.8]}
10. Bf4 {[%clk 0:02:47.2]} 10... Qb6 {[%clk 0:02:24.8]} 11. Na4 {[%clk
0:02:41.2]} 11... Qb4 {[%clk 0:02:22.4]} 12. Qb3 {[%clk 0:02:41.4]} 12... Qxb3
{[%clk 0:02:21.1]} 13. axb3 {[%clk 0:02:41.3]} 13... Nbd7 {[%clk 0:02:08.6]} 14.
Ne5 {[%clk 0:02:14.6]} 14... Nxe5 {[%clk 0:01:54.8]} 15. Bxe5 {[%clk 0:02:13.9]}
15... Nd7 {[%clk 0:01:54]} 16. Bxg7 {[%clk 0:02:08]} 16... Kxg7 {[%clk
0:01:54.9]} 17. Rfd1 {[%clk 0:02:06.6]} 17... Rb8 {[%clk 0:01:54.3]} 18. Rac1
{[%clk 0:01:53.2]} 18... b5 {[%clk 0:01:52.6]} 19. cxb5 {[%clk 0:01:51.7]} 19...
Rxb5 {[%clk 0:01:49.9]} 20. Bc6 {[%clk 0:01:49.5]} 20... Rxb3 {[%clk 0:01:44.4]}
21. Bxd7 {[%clk 0:01:49.4]} 21... Bxd7 {[%clk 0:01:44.7]} 22. Rxd7 {[%clk
0:01:44.6]} 22... Rc8 {[%clk 0:01:31.8]} 23. Rxe7 {[%clk 0:01:35.3]} 23... c4
{[%clk 0:01:29.8]} 24. Re3 {[%clk 0:01:27.4]} 24... Rb4 {[%clk 0:01:29]} 25. Ra3
{[%clk 0:01:20.7]} 25... Re8 {[%clk 0:01:22.5]} 26. e3 {[%clk 0:01:20.4]} 26...
Rd8 {[%clk 0:01:21.7]} 27. Rc2 {[%clk 0:01:19.3]} 27... Rd1+ {[%clk 0:01:18.6]}
28. Kg2 {[%clk 0:01:19.6]} 28... Rd3 {[%clk 0:01:17.2]} 29. Nc5 {[%clk
0:01:16.3]} 29... Rd6 {[%clk 0:00:54.8]} 30. Rxa6 {[%clk 0:01:08.6]} 30... Rd8
{[%clk 0:00:50.9]} 31. Ra4 {[%clk 0:01:04.6]} 31... Rb5 {[%clk 0:00:40.5]} 32.
Raxc4 {[%clk 0:01:02.9]} 32... Rdb8 {[%clk 0:00:39.5]} 33. b3 {[%clk 0:01:02.4]}
33... h5 {[%clk 0:00:36.6]} 34. h4 {[%clk 0:01:01.8]} 34... f6 {[%clk
0:00:34.6]} 35. Rd2 {[%clk 0:01:01.1]} 35... Kh6 {[%clk 0:00:33.9]} 36. Rd6
{[%clk 0:01:00.3]} 36... Rc8 {[%clk 0:00:31.9]} 37. b4 {[%clk 0:00:59.7]} 37...
Kg7 {[%clk 0:00:31]} 38. Ne6+ {[%clk 0:00:58.9]} 1-0

[Event "Early-Titled-Tuesday-Blitz-February-20-2024"]
[Site "Chess.com"]
[Date "2024.02.20"]
[Round "8"]
[White "Barmen_EV"]
[Black "NewYearGirl"]
[Result "1-0"]
[WhiteElo "2514"]
[BlackElo "2357"]
[TimeControl "180+1"]
[EndTime "9:29:27 PST"]
[Termination "Barmen_EV won by resignation"]

1. e4 {[%clk 0:03:00.9]} 1... c5 {[%clk 0:03:00]} 2. c3 {[%clk 0:03:01]} 2... d5
{[%clk 0:02:59.5]} 3. exd5 {[%clk 0:03:01.9]} 3... Nf6 {[%clk 0:03:00]} 4. d4
{[%clk 0:03:02.8]} 4... Nxd5 {[%clk 0:02:57.2]} 5. Nf3 {[%clk 0:03:03]} 5...
cxd4 {[%clk 0:02:52.4]} 6. cxd4 {[%clk 0:03:02.9]} 6... Nc6 {[%clk 0:02:52.1]}
7. Nc3 {[%clk 0:03:03.6]} 7... Bg4 {[%clk 0:02:51.2]} 8. Be2 {[%clk 0:03:01.6]}
8... e6 {[%clk 0:02:49.7]} 9. O-O {[%clk 0:03:01.2]} 9... Be7 {[%clk 0:02:38.4]}
10. h3 {[%clk 0:03:01.3]} 10... Bh5 {[%clk 0:02:36.5]} 11. Be3 {[%clk
0:03:01.5]} 11... O-O {[%clk 0:02:33.4]} 12. a3 {[%clk 0:02:59.4]} 12... Rc8
{[%clk 0:02:32.5]} 13. Qb3 {[%clk 0:02:59.3]} 13... Na5 {[%clk 0:02:30.6]} 14.
Qc2 {[%clk 0:02:57.6]} 14... Nc4 {[%clk 0:02:22.6]} 15. Bxc4 {[%clk 0:02:56.8]}
15... Bxf3 {[%clk 0:02:18.3]} 16. Bd3 {[%clk 0:02:51]} 16... Bd6 {[%clk
0:01:58.8]} 17. gxf3 {[%clk 0:02:40.9]} 17... Qh4 {[%clk 0:01:58.9]} 18. Kg2
{[%clk 0:02:23.1]} 18... f5 {[%clk 0:01:53.6]} 19. Qe2 {[%clk 0:02:04.7]} 19...
Rf6 {[%clk 0:01:45]} 20. Rh1 {[%clk 0:01:58.7]} 20... Rg6+ {[%clk 0:01:12.5]}
21. Kf1 {[%clk 0:01:57.6]} 21... f4 {[%clk 0:00:57.3]} 22. Nxd5 {[%clk 0:01:49]}
22... fxe3 {[%clk 0:00:51.6]} 23. Bxg6 {[%clk 0:01:48.1]} 23... exd5 {[%clk
0:00:50.5]} 24. Bf5 {[%clk 0:01:43.5]} 24... Rf8 {[%clk 0:00:47]} 25. Qxe3
{[%clk 0:01:38]} 25... Kh8 {[%clk 0:00:35.2]} 26. Qe6 {[%clk 0:01:33.4]} 26...
Qf4 {[%clk 0:00:31.1]} 27. Bg4 {[%clk 0:01:16.9]} 27... Bc7 {[%clk 0:00:22]} 28.
Qe3 {[%clk 0:01:11.9]} 28... Qf7 {[%clk 0:00:20.2]} 29. Re1 {[%clk 0:01:11.6]}
29... h5 {[%clk 0:00:20.1]} 30. Qe6 {[%clk 0:00:57.4]} 30... Qf4 {[%clk
0:00:19.2]} 31. Qxd5 {[%clk 0:00:53.1]} 31... hxg4 {[%clk 0:00:17.3]} 32. hxg4+
{[%clk 0:00:54]} 1-0

[Event "Early-Titled-Tuesday-Blitz-February-20-2024"]
[Site "Chess.com"]
[Date "2024.02.20"]
[Round "8"]
[White "Rud_2008"]
[Black "VinzentSpitzl"]
[Result "1-0"]
[WhiteElo "2730"]
[BlackElo "2545"]
[TimeControl "180+1"]
[EndTime "9:29:30 PST"]
[Termination "Rud_2008 won by resignation"]

1. e4 {[%clk 0:03:00.9]} 1... c5 {[%clk 0:02:57.7]} 2. Nf3 {[%clk 0:03:01.1]}
2... d6 {[%clk 0:02:57.9]} 3. Bb5+ {[%clk 0:03:01.4]} 3... Bd7 {[%clk
0:02:55.9]} 4. c4 {[%clk 0:03:01.6]} 4... g6 {[%clk 0:02:52.9]} 5. O-O {[%clk
0:03:01.1]} 5... Bg7 {[%clk 0:02:52.9]} 6. Nc3 {[%clk 0:03:01.6]} 6... Nf6
{[%clk 0:02:51.1]} 7. Bxd7+ {[%clk 0:02:59.5]} 7... Qxd7 {[%clk 0:02:49.5]} 8.
d4 {[%clk 0:02:57.5]} 8... cxd4 {[%clk 0:02:48.9]} 9. Qxd4 {[%clk 0:02:58.4]}
9... Nc6 {[%clk 0:02:48.5]} 10. Qd3 {[%clk 0:02:57.4]} 10... O-O {[%clk
0:02:48.2]} 11. Bg5 {[%clk 0:02:56.5]} 11... Rac8 {[%clk 0:02:45.4]} 12. Rac1
{[%clk 0:02:55.7]} 12... Qd8 {[%clk 0:02:35.3]} 13. b3 {[%clk 0:02:50.6]} 13...
Qa5 {[%clk 0:02:35]} 14. Bd2 {[%clk 0:02:31.9]} 14... Qc5 {[%clk 0:02:29.8]} 15.
Be3 {[%clk 0:02:25.8]} 15... Qa5 {[%clk 0:02:29.4]} 16. Rfd1 {[%clk 0:02:24.5]}
16... Rfd8 {[%clk 0:02:23.7]} 17. h3 {[%clk 0:02:21.6]} 17... Nb4 {[%clk
0:02:06.7]} 18. Qd2 {[%clk 0:02:08.5]} 18... Nc6 {[%clk 0:02:06.3]} 19. Bh6
{[%clk 0:02:05.6]} 19... Ne5 {[%clk 0:01:47.2]} 20. Nd5 {[%clk 0:01:38.9]} 20...
Nxf3+ {[%clk 0:01:27.6]} 21. gxf3 {[%clk 0:01:39.8]} 21... Qxd2 {[%clk
0:01:27.5]} 22. Nxe7+ {[%clk 0:01:38.1]} 22... Kf8 {[%clk 0:01:23.9]} 23. Bxg7+
{[%clk 0:01:36]} 23... Kxg7 {[%clk 0:01:15.3]} 24. Rxd2 {[%clk 0:01:35.1]} 24...
Rc5 {[%clk 0:01:14.6]} 25. Rcd1 {[%clk 0:01:34.6]} 25... Re8 {[%clk 0:01:01.6]}
26. Nd5 {[%clk 0:01:32.2]} 26... Nd7 {[%clk 0:00:53.3]} 27. Ne3 {[%clk
0:01:25.9]} 27... Ne5 {[%clk 0:00:51.6]} 28. Kg2 {[%clk 0:01:26.1]} 28... b5
{[%clk 0:00:43.9]} 29. cxb5 {[%clk 0:01:24.2]} 29... Rxb5 {[%clk 0:00:42.4]} 30.
Rxd6 {[%clk 0:01:24.7]} 30... Ra5 {[%clk 0:00:42.3]} 31. f4 {[%clk 0:01:24.8]}
31... Rxa2 {[%clk 0:00:35]} 32. fxe5 {[%clk 0:01:24]} 32... Rxe5 {[%clk
0:00:35.9]} 33. Kf3 {[%clk 0:01:23.2]} 33... Rh5 {[%clk 0:00:33]} 34. Kg3 {[%clk
0:01:23]} 34... Rg5+ {[%clk 0:00:33.1]} 35. Kf3 {[%clk 0:01:17.5]} 35... Rh5
{[%clk 0:00:33.2]} 36. Rh1 {[%clk 0:01:14.8]} 36... Rb5 {[%clk 0:00:32.9]} 37.
Rd3 {[%clk 0:01:13.3]} 37... Rb2 {[%clk 0:00:32.8]} 38. Ra1 {[%clk 0:01:12.3]}
38... Rh5 {[%clk 0:00:30.7]} 39. Kg2 {[%clk 0:01:08.7]} 39... Rxh3 {[%clk
0:00:31.2]} 1-0

[Event "Early-Titled-Tuesday-Blitz-February-20-2024"]
[Site "Chess.com"]
[Date "2024.02.20"]
[Round "8"]
[White "Bkmzzzzz"]
[Black "WilsonPalencia21"]
[Result "1-0"]
[WhiteElo "2424"]
[BlackElo "2516"]
[TimeControl "180+1"]
[EndTime "9:29:30 PST"]
[Termination "Bkmzzzzz won by checkmate"]

1. e4 {[%clk 0:03:00.9]} 1... c5 {[%clk 0:02:54.4]} 2. Nf3 {[%clk 0:03:01.2]}
2... d6 {[%clk 0:02:54.4]} 3. d4 {[%clk 0:03:01.7]} 3... cxd4 {[%clk 0:02:54.9]}
4. Qxd4 {[%clk 0:03:02.1]} 4... Nc6 {[%clk 0:02:54.5]} 5. Bb5 {[%clk 0:03:02.6]}
5... Qa5+ {[%clk 0:02:55]} 6. Nc3 {[%clk 0:03:02]} 6... Qxb5 {[%clk 0:02:55.9]}
7. Nxb5 {[%clk 0:03:02.7]} 7... Nxd4 {[%clk 0:02:56.8]} 8. Nfxd4 {[%clk
0:03:02.4]} 8... Kd8 {[%clk 0:02:57.2]} 9. c4 {[%clk 0:03:01.9]} 9... Bd7 {[%clk
0:02:55.7]} 10. Nc3 {[%clk 0:02:58.3]} 10... e6 {[%clk 0:02:54.4]} 11. Be3
{[%clk 0:02:55.6]} 11... a6 {[%clk 0:02:54.8]} 12. O-O {[%clk 0:02:51.4]} 12...
Rc8 {[%clk 0:02:54.2]} 13. b3 {[%clk 0:02:50.9]} 13... b5 {[%clk 0:02:54]} 14.
cxb5 {[%clk 0:02:26.4]} 14... Rxc3 {[%clk 0:02:53.2]} 15. bxa6 {[%clk
0:02:26.6]} 15... e5 {[%clk 0:02:42.2]} 16. a7 {[%clk 0:02:20.9]} 16... Rc8
{[%clk 0:02:40.7]} 17. Rfc1 {[%clk 0:02:08.3]} 17... Ra8 {[%clk 0:02:38.6]} 18.
Nc6+ {[%clk 0:02:08.5]} 18... Bxc6 {[%clk 0:02:19.5]} 19. Rxc6 {[%clk
0:02:09.4]} 19... Be7 {[%clk 0:02:11.5]} 20. Rac1 {[%clk 0:02:04]} 20... Nf6
{[%clk 0:02:09.4]} 21. Rc8+ {[%clk 0:01:01.4]} 21... Kd7 {[%clk 0:02:08.5]} 22.
R1c7+ {[%clk 0:01:02.1]} 22... Ke6 {[%clk 0:02:04.9]} 23. Rxh8 {[%clk
0:01:00.8]} 23... Rxh8 {[%clk 0:02:04.1]} 24. b4 {[%clk 0:00:40.9]} 24... d5
{[%clk 0:01:51.1]} 25. Rb7 {[%clk 0:00:39]} 25... Nd7 {[%clk 0:01:42]} 26. exd5+
{[%clk 0:00:37.6]} 26... Kd6 {[%clk 0:01:42.2]} 27. Bc5+ {[%clk 0:00:34]} 27...
Nxc5 {[%clk 0:01:34.2]} 28. bxc5+ {[%clk 0:00:34.9]} 28... Kxd5 {[%clk
0:01:33.5]} 29. Rb8 {[%clk 0:00:35.5]} 29... Bxc5 {[%clk 0:00:33.5]} 30. a8=Q+
{[%clk 0:00:35]} 30... Kd4 {[%clk 0:00:30.3]} 31. Rxh8 {[%clk 0:00:35.5]} 31...
Kd3 {[%clk 0:00:30.9]} 32. Rd8+ {[%clk 0:00:35]} 32... Ke2 {[%clk 0:00:31.2]}
33. Qf3+ {[%clk 0:00:35]} 33... Ke1 {[%clk 0:00:32.1]} 34. Rd1# {[%clk
0:00:34.9]} 1-0

[Event "Early-Titled-Tuesday-Blitz-February-20-2024"]
[Site "Chess.com"]
[Date "2024.02.20"]
[Round "8"]
[White "ninguno46"]
[Black "Saxar85"]
[Result "0-1"]
[WhiteElo "2545"]
[BlackElo "2729"]
[TimeControl "180+1"]
[EndTime "9:29:31 PST"]
[Termination "Saxar85 won by resignation"]

1. e4 {[%clk 0:02:59.1]} 1... e5 {[%clk 0:02:45.3]} 2. Nf3 {[%clk 0:02:58.4]}
2... Nc6 {[%clk 0:02:43.7]} 3. d4 {[%clk 0:02:58.3]} 3... exd4 {[%clk
0:02:40.2]} 4. Bc4 {[%clk 0:02:58.8]} 4... Bc5 {[%clk 0:02:37.8]} 5. c3 {[%clk
0:02:53.7]} 5... Nf6 {[%clk 0:02:37.2]} 6. cxd4 {[%clk 0:02:52.7]} 6... Bb4+
{[%clk 0:02:36.2]} 7. Bd2 {[%clk 0:02:53.3]} 7... Nxe4 {[%clk 0:02:31.5]} 8.
Bxb4 {[%clk 0:02:49.1]} 8... Nxb4 {[%clk 0:02:31]} 9. Bxf7+ {[%clk 0:02:48.2]}
9... Kxf7 {[%clk 0:02:29.3]} 10. Qb3+ {[%clk 0:02:48.2]} 10... Kf8 {[%clk
0:02:23.3]} 11. Qxb4+ {[%clk 0:02:48.2]} 11... Qe7 {[%clk 0:02:22]} 12. Qxe7+
{[%clk 0:02:43.3]} 12... Kxe7 {[%clk 0:02:21.6]} 13. Nc3 {[%clk 0:02:43.9]}
13... Nf6 {[%clk 0:02:10.8]} 14. Kd2 {[%clk 0:02:38.4]} 14... d6 {[%clk
0:02:08]} 15. Rhe1+ {[%clk 0:02:24.6]} 15... Kf7 {[%clk 0:01:58.6]} 16. Ng5+
{[%clk 0:02:11.4]} 16... Kg6 {[%clk 0:01:57.7]} 17. Nf3 {[%clk 0:01:58.4]} 17...
Bd7 {[%clk 0:01:51.4]} 18. Re7 {[%clk 0:01:48.9]} 18... Rhe8 {[%clk 0:01:47.7]}
19. Rae1 {[%clk 0:01:39.9]} 19... Rxe7 {[%clk 0:01:45.8]} 20. Rxe7 {[%clk
0:01:39.7]} 20... Re8 {[%clk 0:01:45.6]} 21. Rxe8 {[%clk 0:01:24.5]} 21... Bxe8
{[%clk 0:01:44.5]} 22. h3 {[%clk 0:01:25.1]} 22... Bc6 {[%clk 0:01:37.1]} 23.
Ne1 {[%clk 0:01:24.3]} 23... Kf5 {[%clk 0:01:34.7]} 24. g4+ {[%clk 0:01:20.8]}
24... Kg5 {[%clk 0:01:32.6]} 25. Ke3 {[%clk 0:01:16.9]} 25... Kh4 {[%clk
0:01:29.8]} 26. f3 {[%clk 0:01:09.3]} 26... Kxh3 {[%clk 0:01:28.6]} 27. Nd3
{[%clk 0:01:08.7]} 27... g5 {[%clk 0:01:24.9]} 28. Nb4 {[%clk 0:01:06.7]} 28...
Kg2 {[%clk 0:01:14.7]} 29. d5 {[%clk 0:00:41.3]} 29... Bd7 {[%clk 0:01:10.3]}
30. Nd3 {[%clk 0:00:38]} 30... Be8 {[%clk 0:01:00.9]} 31. Nf2 {[%clk 0:00:32.3]}
31... Bg6 {[%clk 0:00:56.5]} 32. Nfd1 {[%clk 0:00:28.3]} 32... a6 {[%clk
0:00:52.9]} 33. b4 {[%clk 0:00:25.7]} 33... Bf7 {[%clk 0:00:50.7]} 34. Kd4
{[%clk 0:00:20]} 34... Kxf3 {[%clk 0:00:49.7]} 0-1

[Event "Early-Titled-Tuesday-Blitz-February-20-2024"]
[Site "Chess.com"]
[Date "2024.02.20"]
[Round "8"]
[White "Dixit_Nikhil"]
[Black "Carlitus2004"]
[Result "1-0"]
[WhiteElo "2603"]
[BlackElo "2391"]
[TimeControl "180+1"]
[EndTime "9:29:31 PST"]
[Termination "Dixit_Nikhil won by resignation"]

1. e4 {[%clk 0:03:00.3]} 1... Nc6 {[%clk 0:02:59.1]} 2. d4 {[%clk 0:02:57.6]}
2... d5 {[%clk 0:02:59]} 3. e5 {[%clk 0:02:56.6]} 3... Bf5 {[%clk 0:02:59.1]} 4.
c3 {[%clk 0:02:55.4]} 4... e6 {[%clk 0:02:57.2]} 5. Bd3 {[%clk 0:02:55.5]} 5...
Nge7 {[%clk 0:02:55.1]} 6. Bxf5 {[%clk 0:02:54.5]} 6... Nxf5 {[%clk 0:02:55.4]}
7. Ne2 {[%clk 0:02:52.1]} 7... f6 {[%clk 0:02:54.3]} 8. Ng3 {[%clk 0:02:44.6]}
8... fxe5 {[%clk 0:02:43.4]} 9. Nxf5 {[%clk 0:02:40.9]} 9... exf5 {[%clk
0:02:44.3]} 10. dxe5 {[%clk 0:02:41]} 10... Nxe5 {[%clk 0:02:44.7]} 11. O-O
{[%clk 0:02:39.8]} 11... Bd6 {[%clk 0:02:37.8]} 12. Qxd5 {[%clk 0:02:35.8]}
12... c6 {[%clk 0:02:34.5]} 13. Qe6+ {[%clk 0:02:30.4]} 13... Qe7 {[%clk
0:02:33.1]} 14. Qxf5 {[%clk 0:02:24.5]} 14... Rf8 {[%clk 0:02:32]} 15. Qh3
{[%clk 0:02:19.4]} 15... Kd8 {[%clk 0:02:31.2]} 16. Nd2 {[%clk 0:02:17.7]} 16...
Kc7 {[%clk 0:02:31.5]} 17. Ne4 {[%clk 0:02:18.1]} 17... Rae8 {[%clk 0:02:10]}
18. Nxd6 {[%clk 0:02:17.6]} 18... Qxd6 {[%clk 0:02:10.9]} 19. Be3 {[%clk
0:02:12.3]} 19... Kb8 {[%clk 0:02:10.9]} 20. Rad1 {[%clk 0:02:03.3]} 20... Qg6
{[%clk 0:01:53.3]} 21. Qg3 {[%clk 0:01:53.3]} 21... Qxg3 {[%clk 0:01:52.2]} 22.
hxg3 {[%clk 0:01:53.8]} 22... Nc4 {[%clk 0:01:51.8]} 23. Bf4+ {[%clk 0:01:53.9]}
23... Kc8 {[%clk 0:01:52.3]} 24. b3 {[%clk 0:01:52]} 24... Ne5 {[%clk
0:01:45.4]} 25. Rfe1 {[%clk 0:01:49.9]} 25... Ng4 {[%clk 0:01:38.9]} 26. f3
{[%clk 0:01:45.7]} 26... Nf6 {[%clk 0:01:37.8]} 27. c4 {[%clk 0:01:40.2]} 27...
Nd7 {[%clk 0:01:36.3]} 28. Kf2 {[%clk 0:01:37.2]} 28... Nf6 {[%clk 0:01:16.5]}
29. Rxe8+ {[%clk 0:01:33.8]} 29... Rxe8 {[%clk 0:01:16.2]} 30. g4 {[%clk
0:01:29.5]} 30... h6 {[%clk 0:01:09.7]} 31. Be3 {[%clk 0:01:27.2]} 31... a6
{[%clk 0:00:58.1]} 32. g5 {[%clk 0:01:25.3]} 32... hxg5 {[%clk 0:00:56.1]} 33.
Bxg5 {[%clk 0:01:26.2]} 33... Nd7 {[%clk 0:00:56.3]} 34. Re1 {[%clk 0:01:24.3]}
34... Rh8 {[%clk 0:00:31.1]} 35. Re7 {[%clk 0:01:21.9]} 35... Rh1 {[%clk
0:00:31.3]} 36. Rxg7 {[%clk 0:01:20.9]} 36... Ra1 {[%clk 0:00:31]} 37. g4 {[%clk
0:01:14.3]} 37... Rxa2+ {[%clk 0:00:30.5]} 38. Kg3 {[%clk 0:01:14.7]} 38... Rb2
{[%clk 0:00:30.9]} 39. Bf4 {[%clk 0:01:11]} 39... Nf6 {[%clk 0:00:25.7]} 40. Be5
{[%clk 0:01:08.9]} 40... Ne8 {[%clk 0:00:25.7]} 41. Bxb2 {[%clk 0:01:08.1]} 1-0

[Event "Early-Titled-Tuesday-Blitz-February-20-2024"]
[Site "Chess.com"]
[Date "2024.02.20"]
[Round "8"]
[White "FREDERICKtheMATE"]
[Black "szachuspl"]
[Result "1-0"]
[WhiteElo "2686"]
[BlackElo "2512"]
[TimeControl "180+1"]
[EndTime "9:29:32 PST"]
[Termination "FREDERICKtheMATE won by resignation"]

1. Nf3 {[%clk 0:03:00.9]} 1... Nf6 {[%clk 0:02:59.2]} 2. d4 {[%clk 0:03:00.4]}
2... g6 {[%clk 0:02:59.2]} 3. c4 {[%clk 0:03:00.3]} 3... Bg7 {[%clk 0:02:59.6]}
4. Nc3 {[%clk 0:03:00.5]} 4... O-O {[%clk 0:03:00.4]} 5. e4 {[%clk 0:03:00.2]}
5... d6 {[%clk 0:03:01]} 6. Be2 {[%clk 0:03:00.1]} 6... Nbd7 {[%clk 0:03:01.5]}
7. O-O {[%clk 0:02:59]} 7... e5 {[%clk 0:03:02]} 8. h3 {[%clk 0:02:57.8]} 8...
Re8 {[%clk 0:03:01.6]} 9. d5 {[%clk 0:02:56.3]} 9... Nc5 {[%clk 0:03:01.5]} 10.
Nd2 {[%clk 0:02:56]} 10... a5 {[%clk 0:03:01.5]} 11. Rb1 {[%clk 0:02:55.3]}
11... c6 {[%clk 0:02:55]} 12. b3 {[%clk 0:02:53.8]} 12... cxd5 {[%clk
0:02:55.4]} 13. cxd5 {[%clk 0:02:54.1]} 13... Bd7 {[%clk 0:02:56]} 14. a3 {[%clk
0:02:53.4]} 14... b5 {[%clk 0:02:56.4]} 15. b4 {[%clk 0:02:52.2]} 15... axb4
{[%clk 0:02:56.5]} 16. axb4 {[%clk 0:02:53.1]} 16... Na4 {[%clk 0:02:56.2]} 17.
Qb3 {[%clk 0:02:50.9]} 17... Nxc3 {[%clk 0:02:52.1]} 18. Qxc3 {[%clk 0:02:51.8]}
18... Nh5 {[%clk 0:02:49.3]} 19. Bxh5 {[%clk 0:02:50.5]} 19... gxh5 {[%clk
0:02:49.6]} 20. Nb3 {[%clk 0:02:49.1]} 20... Rc8 {[%clk 0:02:46.6]} 21. Qg3
{[%clk 0:02:48]} 21... h4 {[%clk 0:02:41.2]} 22. Qd3 {[%clk 0:02:42.6]} 22... f5
{[%clk 0:02:34.9]} 23. exf5 {[%clk 0:02:36]} 23... e4 {[%clk 0:02:34.9]} 24. Qe2
{[%clk 0:02:34.9]} 24... Bxf5 {[%clk 0:02:33.3]} 25. Be3 {[%clk 0:02:33.8]}
25... Rc4 {[%clk 0:02:15.7]} 26. Na5 {[%clk 0:02:31.9]} 26... Rc3 {[%clk
0:02:15.9]} 27. Qxb5 {[%clk 0:02:27.8]} 27... Be5 {[%clk 0:02:15.4]} 28. Nc6
{[%clk 0:02:22.1]} 28... Qd7 {[%clk 0:02:05.8]} 29. Qe2 {[%clk 0:02:15.8]} 29...
Bf6 {[%clk 0:02:00.1]} 30. Rfc1 {[%clk 0:02:06.4]} 30... Rxc1+ {[%clk 0:01:54]}
31. Rxc1 {[%clk 0:02:07.3]} 31... Kh8 {[%clk 0:01:46.1]} 32. Kh2 {[%clk
0:01:56.9]} 32... Rg8 {[%clk 0:01:43.6]} 33. b5 {[%clk 0:01:54.3]} 33... Qg7
{[%clk 0:01:27.6]} 34. Rg1 {[%clk 0:01:36.3]} 34... Qf7 {[%clk 0:01:25.5]} 35.
Qd2 {[%clk 0:01:31.6]} 35... Qb7 {[%clk 0:00:55.7]} 36. Bd4 {[%clk 0:01:25.9]}
36... Kg7 {[%clk 0:00:48.4]} 37. Bxf6+ {[%clk 0:01:21.6]} 37... Kxf6 {[%clk
0:00:48.6]} 38. Qd4+ {[%clk 0:01:21.3]} 38... Kf7 {[%clk 0:00:47.6]} 39. Ra1
{[%clk 0:01:19.2]} 39... Ra8 {[%clk 0:00:42.4]} 40. Rxa8 {[%clk 0:01:16.3]}
40... Qxa8 {[%clk 0:00:42.8]} 41. Qa7+ {[%clk 0:01:14.8]} 41... Qxa7 {[%clk
0:00:43.2]} 42. Nxa7 {[%clk 0:01:15.4]} 42... Ke7 {[%clk 0:00:40]} 43. b6 {[%clk
0:01:14.6]} 43... Kd7 {[%clk 0:00:40.4]} 44. Nb5 {[%clk 0:01:13.2]} 44... e3
{[%clk 0:00:31.9]} 45. fxe3 {[%clk 0:01:07]} 45... Bd3 {[%clk 0:00:32.1]} 46. b7
{[%clk 0:01:06.6]} 1-0